fUST/lending_fUST_20250228
["ID","MTS","AMOUNT","RATE_DAILY","PERIOD"]
[354847959,1740735040058,-5098.19,0.0009863,120]
[354847960,1740735040067,-5098.19,0.0009863,120]
[354847961,1740735040077,-5098.19,0.0009863,120]
[354847962,1740735040086,-5098.19,0.0009863,120]
[354847963,1740735040097,-5098.19,0.0009863,120]
[354847964,1740735040106,-5098.19,0.0009863,120]
[354847965,1740735040115,-5098.19,0.0009863,120]
[354847966,1740735040125,-500.0,0.0009863,120]
[354847968,1740735040135,-500.0,0.0009863,120]
[354847969,1740735040144,-316.26,0.0009863,120]
[354847970,1740735040154,-500.0,0.0009863,120]
[354847971,1740735040163,-500.0,0.0009863,120]
[354847972,1740735040176,-500.0,0.0009863,120]
[354847973,1740735040185,-500.0,0.0009863,120]
[354847975,1740735040195,-5098.19,0.00099599,120]
[354847976,1740735040204,-151.0,0.001,120]
[354847977,1740735040214,-151.0,0.001,120]
[354847978,1740735040223,-6512.0,0.001,30]
[354847979,1740735040232,-160.45547627,0.00102233,14]
[354847980,1740735040242,-1042.61127036,0.00103735,2]
[354847981,1740735040251,-5098.19,0.00103833,120]
[354847983,1740735040261,-5098.19,0.00103833,120]
[354847984,1740735040271,-5098.19,0.00103833,120]
[354847985,1740735040281,-5098.19,0.00103833,120]
[354847986,1740735040291,-5098.19,0.00103833,120]
[354847987,1740735040300,-5098.19,0.00103833,120]
[354847988,1740735040310,-5098.19,0.00103833,120]
[354847989,1740735040320,-5098.19,0.00103833,120]
[354847990,1740735040330,-5098.19,0.00103833,120]
[354847991,1740735040340,-5098.19,0.00103833,120]
[354847992,1740735040350,-5098.19,0.00103833,120]
[354847993,1740735040360,-5098.19,0.00103833,120]
[354847994,1740735040369,-5098.26069091,0.00103833,120]
[354847995,1740735040378,-371.8,0.00104,60]
[354847996,1740735040388,-153.47393903,0.00107354,120]
[354847997,1740735040397,-31919.63099138,0.0011,120]
[354847998,1740735040407,-2500.0,0.00111169,3]
[354848000,1740735040417,-3540.53186776,0.00116055,120]
[354848001,1740735040426,-399.3800469,0.00117432,120]
[354848003,1740735040436,-401.22,0.00121,14]
[354848005,1740735040445,-3000.0,0.00128595,3]
[354848006,1740735040455,-153.47393903,0.00138627,120]
[354848007,1740735040464,-986.5226968,0.00141329,28]
[354848008,1740735040473,-600.0,0.00160862,3]
[354848009,1740735040482,-153.47393903,0.00169899,120]
[354848010,1740735040492,-2637.61,0.00169999,120]
[354848011,1740735040501,-500.0,0.00169999,120]
[354848012,1740735040510,-500.0,0.00169999,120]
[354848013,1740735040519,-500.0,0.00169999,120]
[354848014,1740735040529,-320.15,0.00169999,120]
[354848015,1740735040538,-1000.0,0.00169999,2]
[354848016,1740735040547,-500.0,0.00169999,2]
[354848017,1740735040557,-500.0,0.00169999,120]
[354848018,1740735040567,-500.0,0.00169999,120]
[354848019,1740735040576,-500.0,0.00169999,120]
[354848020,1740735040585,-254.96,0.00169999,120]
[354848021,1740735040594,-500.0,0.00169999,120]
[354848022,1740735040603,-500.0,0.00169999,120]
[354848023,1740735040612,-500.0,0.00169999,120]
[354848024,1740735040621,-1912.99,0.00169999,120]
[354848025,1740735040630,-1912.99,0.00169999,120]
[354848026,1740735040639,-1912.99,0.00169999,120]
[354848027,1740735040648,-1912.99,0.00169999,120]
[354848028,1740735040657,-1912.99,0.00169999,120]
[354848029,1740735040666,-189.92,0.00169999,120]
[354848030,1740735040677,-500.0,0.00169999,120]
[354848031,1740735040686,-500.0,0.00169999,120]
[354848032,1740735040697,-453.81,0.00169999,120]
[354848033,1740735040708,-500.0,0.00169999,120]
[354848034,1740735040717,-999.0,0.00169999,120]
[354848035,1740735040726,-500.0,0.00169999,120]
[354848036,1740735040735,-500.0,0.00169999,120]
[354848037,1740735040746,-500.0,0.00169999,120]
[354848038,1740735040755,-500.0,0.00169999,120]
[354848039,1740735040765,-495.33852974,0.00169999,120]
[354848040,1740735040774,-500.0,0.00169999,120]
[354848041,1740735040783,-500.0,0.00169999,120]
[354848042,1740735040794,-500.0,0.00169999,120]
[354848043,1740735040804,-582.44525518,0.00169999,120]
[354848044,1740735040813,-500.0,0.00169999,120]
[354848045,1740735040822,-486.37,0.00169999,120]
[354848046,1740735040832,-500.0,0.00169999,120]
[354848047,1740735040841,-500.0,0.00169999,120]
[354848048,1740735040851,-252.44,0.00169999,120]
[354848049,1740735040860,-500.0,0.00169999,120]
[354848050,1740735040870,-500.0,0.00169999,120]
[354848051,1740735040879,-500.0,0.00169999,120]
[354848052,1740735040888,-500.0,0.00169999,120]
[354848053,1740735040897,-478.98,0.00169999,120]
[354848054,1740735040906,-830.6,0.00169999,120]
[354848055,1740735040915,-830.6,0.00169999,120]
[354848056,1740735040927,-830.6,0.00169999,120]
[354848057,1740735040936,-830.6,0.00169999,120]
[354848058,1740735040946,-830.6,0.00169999,120]
[354848059,1740735040955,-500.0,0.00169999,120]
[354848060,1740735040964,-500.0,0.00169999,120]
[354848061,1740735040974,-500.0,0.00169999,120]
[354848062,1740735040983,-500.0,0.00169999,120]
[354848063,1740735040992,-500.0,0.00169999,120]
[354848064,1740735041002,-10000.0,0.0017,30]
[354848065,1740735041012,-18632.83,0.0017,60]
[354848066,1740735041022,-3540.53186776,0.00177337,120]
[354848067,1740735041031,-320.97,0.001811,30]
[354848068,1740735041040,-999.0,0.00186437,120]
[354848069,1740735041049,-986.5226968,0.00187043,28]
[354848070,1740735041059,-2637.61,0.00189999,120]
[354848071,1740735041068,-1912.99,0.00189999,120]
[354848072,1740735041078,-830.6,0.00189999,120]
[354848073,1740735041087,-500.0,0.00189999,120]
[354848074,1740735041096,-572.20866808,0.0019,90]
[354848075,1740735041106,-999.0,0.0019,120]
[354848076,1740735041115,-22250.0,0.0019,120]
[354848077,1740735041125,-1990.0,0.0019,120]
[354848078,1740735041135,-231224.00000056,0.001908,120]
[354848079,1740735041145,-1397738.74205234,0.0019085,120]
[354848080,1740735041160,-44353.51361572,0.0019085,120]
[354848081,1740735041279,-811.9559,0.00076141,10]
[354848115,1740735046627,-4067.0,0.00076141,10]
[354848116,1740735046685,-16180.8341,0.00076141,10]
[354848117,1740735046694,-511.16035751,0.0009863,120]
[354848118,1740735046709,-500.0,0.0009863,120]
[354848119,1740735046718,-505.01225836,0.0009863,120]
[354848120,1740735046727,-504.00037815,0.0009863,120]
[354848121,1740735046738,-500.00000001,0.0009863,2]
[354848122,1740735046747,-500.0,0.0009863,120]
[354848123,1740735046756,-500.0,0.0009863,120]
[354848124,1740735046766,-500.0,0.0009863,120]
[354848125,1740735046776,-42678.5513883,0.00190858,120]
[354848126,1740735046786,-29693.1248639,0.00190858,120]
[354848127,1740735046795,-1912.99,0.00190899,120]
[354848128,1740735046805,-1912.99,0.00190899,120]
[354848129,1740735046912,-830.6,0.00190899,120]
[354848130,1740735046924,-830.6,0.00190899,120]
[354848131,1740735046934,-500.0,0.00190899,120]
[354848132,1740735046944,-500.0,0.00190899,120]
[354848133,1740735046954,-5005.17574453,0.001909,2]
[354848134,1740735046964,-1912.99,0.00190957,120]
[354848135,1740735046973,-1912.99,0.00190957,120]
[354848136,1740735046983,-1912.99,0.00190957,120]
[354848137,1740735046992,-1912.99,0.00190957,120]
[354848138,1740735047001,-1912.99,0.00190957,120]
[354848140,1740735047011,-1912.99,0.00190957,120]
[354848142,1740735047020,-1912.99,0.00190957,120]
[354848144,1740735047030,-1912.99,0.00190957,120]
[354848146,1740735047039,-1912.99,0.00190957,120]
[354848148,1740735047048,-1912.99,0.00190957,120]
[354848150,1740735047057,-1912.99,0.00190957,120]
[354848152,1740735047067,-1912.99,0.00190957,120]
[354848154,1740735047076,-1912.99,0.00190957,120]
[354848156,1740735047085,-1912.99,0.00190957,120]
[354848158,1740735047094,-1912.99,0.00190957,120]
[354848159,1740735047103,-1913.16123146,0.00190957,120]
[354848160,1740735047113,-830.6,0.00190957,120]
[354848161,1740735047123,-830.6,0.00190957,120]
[354848162,1740735047133,-830.6,0.00190957,120]
[354848163,1740735047142,-830.6,0.00190957,120]
[354848164,1740735047151,-830.6,0.00190957,120]
[354848165,1740735047160,-830.6,0.00190957,120]
[354848166,1740735047170,-830.6,0.00190957,120]
[354848167,1740735047182,-830.6,0.00190957,120]
[354848168,1740735047191,-830.6,0.00190957,120]
[354848169,1740735047200,-830.6,0.00190957,120]
[354848170,1740735047210,-830.6,0.00190957,120]
[354848171,1740735047220,-830.6,0.00190957,120]
[354848172,1740735047229,-830.6,0.00190957,120]
[354848173,1740735047239,-830.6,0.00190957,120]
[354848174,1740735047248,-830.6,0.00190957,120]
[354848175,1740735047258,-830.60999989,0.00190957,120]
[354848176,1740735047267,-500.0,0.00190957,120]
[354848177,1740735047276,-500.0,0.00190957,120]
[354848178,1740735047285,-363.73809588,0.00190957,120]
[354848179,1740735047295,-500.0,0.00190973,14]
[354848180,1740735047304,-500.0,0.00190973,120]
[354848181,1740735047313,-500.0,0.00190973,14]
[354848182,1740735047322,-561.17,0.00190975,120]
[354848183,1740735047331,-500.0,0.00190988,30]
[354848184,1740735047340,-500.0,0.00190988,30]
[354848185,1740735047349,-292.64,0.00190988,30]
[354848186,1740735047358,-533.08,0.00190988,120]
[354848187,1740735047368,-500.0,0.00190988,120]
[354848188,1740735047378,-500.0,0.00190988,120]
[354848189,1740735047386,-2637.61,0.00190988,120]
[354848190,1740735047396,-500.0,0.00190988,120]
[354848191,1740735047406,-500.0,0.00190988,120]
[354848192,1740735047416,-500.0,0.00190988,120]
[354848193,1740735047427,-500.0,0.00190988,120]
[354848194,1740735047437,-500.0,0.00190988,120]
[354848195,1740735047447,-500.0,0.00190988,120]
[354848196,1740735047457,-500.0,0.00190988,120]
[354848197,1740735047467,-500.0,0.00190988,120]
[354848198,1740735047476,-500.0,0.00190988,120]
[354848199,1740735047486,-500.0,0.00190988,120]
[354848200,1740735047496,-500.0,0.00190988,120]
[354848201,1740735047505,-500.0,0.00190988,120]
[354848202,1740735047514,-500.0,0.00190988,120]
[354848203,1740735047524,-500.0,0.00190988,120]
[354848204,1740735047533,-500.0,0.00190988,120]
[354848205,1740735047543,-500.0,0.00190988,120]
[354848206,1740735047553,-500.0,0.00190988,120]
[354848207,1740735047562,-500.0,0.00190988,120]
[354848208,1740735047571,-500.0,0.00190988,120]
[354848209,1740735047581,-500.0,0.00190988,120]
[354848210,1740735047591,-500.0,0.00190988,120]
[354848211,1740735047601,-500.0,0.00190988,120]
[354848212,1740735047611,-500.0,0.00190988,120]
[354848213,1740735047621,-500.0,0.00190988,120]
[354848214,1740735047630,-266.99326494,0.00190988,120]
[354848215,1740735047639,-500.0,0.00190988,120]
[354848216,1740735047649,-500.0,0.00190988,120]
[354848217,1740735047659,-500.0,0.00190988,120]
[354848218,1740735047669,-500.0,0.00190988,120]
[354848219,1740735047683,-500.0,0.00190988,120]
[354848220,1740735047693,-500.0,0.00190988,120]
[354848221,1740735047707,-500.0,0.00190988,120]
[354848222,1740735047717,-397.90949524,0.00190988,120]
[354848223,1740735047726,-500.0,0.00190988,120]
[354848224,1740735047736,-620.62823721,0.00190988,120]
[354848225,1740735047747,-2637.61,0.00190998,120]
[354848226,1740735047757,-500.0,0.00190998,120]
[354848227,1740735047767,-500.0,0.00190998,120]
[354848228,1740735047778,-500.0,0.00190999,120]
[354848229,1740735047787,-500.0,0.00190999,120]
[354848230,1740735047797,-2637.61,0.00190999,120]
[354848231,1740735047806,-2637.61,0.00190999,120]
[354848232,1740735047815,-2637.61,0.00190999,120]
[354848233,1740735047825,-500.0,0.00190999,120]
[354848234,1740735047834,-2637.61,0.00190999,120]
[354848235,1740735047844,-173.77878238,0.00190999,120]
[354848236,1740735047854,-2637.61,0.00190999,120]
[354848237,1740735047864,-2637.61,0.00190999,120]
[354848238,1740735047873,-2637.61,0.00190999,120]
[354848239,1740735047882,-2637.61,0.00190999,120]
[354848240,1740735047892,-2637.61,0.00190999,120]
[354848241,1740735047901,-2637.61,0.00190999,120]
[354848242,1740735047911,-2637.61,0.00190999,120]
[354848243,1740735047920,-2637.61,0.00190999,120]
[354848244,1740735047935,-2637.61,0.00190999,120]
[354848245,1740735047944,-2637.61,0.00190999,120]
[354848246,1740735047954,-2637.61,0.00190999,120]
[354848247,1740735047964,-2637.61,0.00190999,120]
[354848248,1740735047973,-2637.61,0.00190999,120]
[354848249,1740735047982,-2637.61094432,0.00190999,120]
[354848250,1740735047991,-500.0,0.00190999,120]
[354848251,1740735048001,-500.0,0.00190999,120]
[354848252,1740735048010,-500.0,0.00190999,120]
[354848253,1740735048020,-500.0,0.00190999,120]
[354848254,1740735048029,-500.0,0.00190999,120]
[354848255,1740735048038,-500.0,0.00190999,120]
[354848256,1740735048048,-500.0,0.00190999,120]
[354848257,1740735048058,-500.0,0.00190999,120]
[354848258,1740735048068,-500.0,0.00190999,120]
[354848259,1740735048077,-500.0,0.00190999,120]
[354848260,1740735048086,-500.0,0.00190999,120]
[354848261,1740735048096,-500.0,0.00190999,120]
[354848262,1740735048105,-500.0,0.00190999,120]
[354848263,1740735048114,-500.0,0.00190999,120]
[354848264,1740735048124,-500.0,0.00190999,120]
[354848265,1740735048133,-241.11,0.00190999,120]
[354848266,1740735048142,-500.0,0.00190999,120]
[354848267,1740735048151,-500.0,0.00190999,120]
[354848268,1740735048161,-441.28799947,0.00190999,120]
[354848269,1740735048170,-500.0,0.00190999,120]
[354848270,1740735048182,-500.0,0.00190999,120]
[354848271,1740735048192,-166.74,0.00190999,120]
[354848272,1740735048201,-500.0,0.00190999,120]
[354848273,1740735048211,-500.0,0.00190999,120]
[354848274,1740735048221,-500.0,0.00190999,120]
[354848275,1740735048230,-500.0,0.00190999,120]
[354848276,1740735048240,-167.62,0.00190999,120]
[354848277,1740735048250,-500.0,0.00190999,120]
[354848278,1740735048260,-500.0,0.00190999,120]
[354848279,1740735048270,-500.0,0.00190999,120]
[354848280,1740735048280,-500.0,0.00190999,120]
[354848281,1740735048291,-500.0,0.00190999,120]
[354848282,1740735048301,-500.0,0.00190999,120]
[354848283,1740735048312,-500.0,0.00190999,120]
[354848284,1740735048321,-500.0,0.00190999,120]
[354848285,1740735048331,-500.0,0.00190999,120]
[354848286,1740735048341,-500.0,0.00190999,120]
[354848287,1740735048351,-500.0,0.00190999,120]
[354848288,1740735048362,-500.0,0.00190999,120]
[354848289,1740735048372,-500.0,0.00190999,120]
[354848290,1740735048382,-347.63,0.00190999,120]
[354848291,1740735048392,-945.43,0.00190999,7]
[354848292,1740735048401,-945.43,0.00190999,7]
[354848293,1740735048410,-945.43,0.00190999,7]
[354848294,1740735048420,-945.43,0.00190999,7]
[354848295,1740735048437,-945.43,0.00190999,7]
[354848296,1740735048447,-945.43,0.00190999,7]
[354848297,1740735048457,-945.43,0.00190999,7]
[354848298,1740735048467,-945.43,0.00190999,7]
[354848299,1740735048478,-945.43,0.00190999,7]
[354848300,1740735048488,-945.43,0.00190999,7]
[354848301,1740735048499,-945.43,0.00190999,7]
[354848302,1740735048509,-945.43,0.00190999,7]
[354848303,1740735048520,-945.43,0.00190999,7]
[354848304,1740735048531,-945.43,0.00190999,7]
[354848305,1740735048542,-945.43,0.00190999,7]
[354848306,1740735048552,-945.43,0.00190999,7]
[354848307,1740735048562,-945.43,0.00190999,7]
[354848308,1740735048572,-945.43,0.00190999,7]
[354848309,1740735048582,-945.43,0.00190999,7]
[354848310,1740735048592,-945.43,0.00190999,7]
[354848311,1740735048601,-945.43,0.00190999,7]
[354848312,1740735048611,-945.43,0.00190999,7]
[354848313,1740735048622,-945.43,0.00190999,7]
[354848314,1740735048631,-945.53,0.00190999,7]
[354848315,1740735048641,-500.0,0.00190999,120]
[354848316,1740735048650,-500.0,0.00190999,120]
[354848317,1740735048660,-500.0,0.00190999,120]
[354848318,1740735048670,-500.0,0.00190999,120]
[354848319,1740735048686,-500.0,0.00190999,120]
[354848320,1740735048695,-264.82,0.00190999,120]
[354848321,1740735048706,-500.0,0.00190999,120]
[354848322,1740735048715,-500.0,0.00190999,120]
[354848323,1740735048728,-500.0,0.00190999,120]
[354848324,1740735048737,-500.0,0.00190999,120]
[354848325,1740735048746,-500.0,0.00190999,120]
[354848326,1740735048755,-500.0,0.00190999,120]
[354848327,1740735048766,-541.7,0.00190999,120]
[354848328,1740735048776,-500.0,0.00190999,120]
[354848329,1740735048786,-500.0,0.00190999,120]
[354848330,1740735048795,-500.0,0.00190999,120]
[354848331,1740735048807,-500.0,0.00190999,120]
[354848332,1740735048817,-500.0,0.00190999,120]
[354848333,1740735048828,-500.0,0.00190999,120]
[354848334,1740735048837,-500.0,0.00190999,120]
[354848335,1740735048847,-500.0,0.00190999,120]
[354848336,1740735048856,-498.31,0.00190999,120]
[354848337,1740735048865,-5000.0,0.00190999,120]
[354848338,1740735048875,-5000.0,0.00190999,120]
[354848339,1740735048885,-5000.0,0.00190999,120]
[354848340,1740735048894,-5000.0,0.00190999,120]
[354848341,1740735048904,-5000.0,0.00190999,120]
[354848342,1740735048914,-5000.0,0.00190999,120]
[354848343,1740735048929,-311.0,0.00190999,120]
[354848344,1740735048940,-500.0,0.00190999,120]
[354848345,1740735048950,-500.0,0.00190999,120]
[354848346,1740735048961,-500.0,0.00190999,120]
[354848347,1740735048971,-500.0,0.00190999,120]
[354848348,1740735048982,-500.0,0.00190999,120]
[354848349,1740735048992,-500.0,0.00190999,120]
[354848350,1740735049002,-500.0,0.00190999,120]
[354848351,1740735049012,-500.0,0.00190999,120]
[354848352,1740735049022,-500.0,0.00190999,120]
[354848353,1740735049032,-500.0,0.00190999,120]
[354848354,1740735049042,-500.0,0.00190999,120]
[354848355,1740735049052,-500.0,0.00190999,120]
[354848356,1740735049063,-500.0,0.00190999,120]
[354848357,1740735049073,-500.0,0.00190999,120]
[354848358,1740735049083,-500.0,0.00190999,120]
[354848359,1740735049094,-500.0,0.00190999,120]
[354848360,1740735049104,-500.0,0.00190999,120]
[354848361,1740735049113,-500.0,0.00190999,120]
[354848362,1740735049123,-500.0,0.00190999,120]
[354848363,1740735049134,-477.70992275,0.00190999,120]
[354848364,1740735049144,-500.0,0.00190999,120]
[354848365,1740735049154,-500.0,0.00190999,120]
[354848366,1740735049165,-500.0,0.00190999,120]
[354848367,1740735049180,-500.0,0.00190999,120]
[354848368,1740735049189,-500.0,0.00190999,120]
[354848369,1740735049198,-203.2,0.00190999,120]
[354848370,1740735049208,-500.0,0.00190999,120]
[354848371,1740735049218,-500.0,0.00190999,120]
[354848372,1740735049227,-500.0,0.00190999,120]
[354848373,1740735049237,-500.0,0.00190999,120]
[354848374,1740735049246,-500.0,0.00190999,120]
[354848375,1740735049255,-500.0,0.00190999,120]
[354848376,1740735049265,-500.0,0.00190999,120]
[354848377,1740735049275,-500.0,0.00190999,120]
[354848378,1740735049285,-500.0,0.00190999,120]
[354848379,1740735049294,-191.60151411,0.00190999,120]
[354848380,1740735049304,-587.31,0.00190999,120]
[354848381,1740735049313,-26143.21,0.00190999,7]
[354848382,1740735049323,-26143.21,0.00190999,7]
[354848383,1740735049333,-26143.21,0.00190999,7]
[354848384,1740735049343,-26143.21,0.00190999,7]
[354848385,1740735049352,-26143.21,0.00190999,7]
[354848386,1740735049370,-26143.21,0.00190999,7]
[354848387,1740735049381,-26143.21,0.00190999,7]
[354848388,1740735049391,-26143.21,0.00190999,7]
[354848389,1740735049401,-26143.21,0.00190999,7]
[354848390,1740735049411,-26143.21,0.00190999,7]
[354848391,1740735049420,-15609.38920982,0.00190999,7]
[354848392,1740735049442,-794.53,0.00190999,7]
[354848394,1740735281375,-150.0,0.00049079,2]
[354848395,1740735281949,-35.389151,0.00049079,2]
[354848396,1740735281973,-114.610849,0.00053986,2]
[354848397,1740735284299,-70.778302,0.00053986,2]
[354848398,1740735285594,-150.0,0.00059862,15]
[354848399,1740735287291,-150.0,0.00059862,15]
[354848400,1740735404336,268.0,0.00035,120]
[354848401,1740735519948,-150.0,0.00036,2]
[354848402,1740735522126,-40.0,0.00036,2]
[354848406,1740735616181,188.85507866,0.00035,30]
[354848407,1740735624783,2048.26695572,0.00035,30]
[354848417,1740735865028,1460.79046802,0.0003,120]
[354848418,1740735905555,627.82104845,0.00035,120]
[354848419,1740736016726,184.520321,0.00032877,2]
[354848423,1740736145124,-295.763217,0.00039872,2]
[354848424,1740736145145,-250.0,0.00041841,2]
[354848425,1740736145167,-10000.0,0.00041841,120]
[354848426,1740736145188,-254.9661551,0.00043104,120]
[354848427,1740736145209,-495.3192376,0.00043195,2]
[354848428,1740736145229,-11837.1202011,0.00043449,2]
[354848429,1740736145251,-209.59810333,0.000439,9]
[354848430,1740736145272,-151.0,0.00045,120]
[354848431,1740736145293,-151.0,0.00045,120]
[354848432,1740736145314,-261.86946244,0.00046979,2]
[354848433,1740736145334,-4999.999999,0.00049,120]
[354848434,1740736145356,-4499.869999,0.0005,30]
[354848435,1740736145377,-261.86946244,0.00051979,2]
[354848436,1740736145397,-1127.90170399,0.00054695,28]
[354848437,1740736145417,-184.520321,0.00054795,2]
[354848438,1740736145438,-261.86946244,0.00056979,2]
[354848439,1740736145458,-999.73089517,0.00057459,12]
[354848440,1740736145479,-24900.0,0.0005746,2]
[354848441,1740736145499,-154.92,0.00059763,30]
[354848442,1740736145518,-295.763217,0.00059808,30]
[354848443,1740736145538,-4756.44037942,0.00059863,120]
[354848444,1740736145558,-500.0,0.00059999,30]
[354848445,1740736145579,-4464.93462151,0.0006,120]
[354848446,1740736145606,-182.6,0.0006,60]
[354848447,1740736145630,-182.6,0.0006,60]
[354848448,1740736145654,-182.6,0.0006,60]
[354848449,1740736145678,-182.6,0.0006,60]
[354848450,1740736145702,-182.6,0.0006,60]
[354848451,1740736145725,-182.6,0.0006,60]
[354848452,1740736145748,-182.6,0.0006,60]
[354848453,1740736145771,-182.6,0.0006,60]
[354848454,1740736145795,-182.6,0.0006,60]
[354848455,1740736145820,-182.6,0.0006,60]
[354848456,1740736145843,-182.6,0.0006,60]
[354848457,1740736145867,-182.6,0.0006,60]
[354848458,1740736145887,-500.0,0.00060547,35]
[354848459,1740736145907,-500.0,0.00061095,40]
[354848460,1740736145927,-500.0,0.00061643,45]
[354848461,1740736145946,-500.0,0.00062191,50]
[354848462,1740736145966,-500.0,0.00062739,55]
[354848463,1740736145987,-500.0,0.00063287,60]
[354848464,1740736146008,-500.0,0.00063835,65]
[354848465,1740736146027,-500.0,0.00064383,70]
[354848466,1740736146047,-500.0,0.00064931,75]
[354848467,1740736146067,-500.0,0.00065479,80]
[354848468,1740736146087,-500.0,0.00066027,85]
[354848469,1740736146107,-500.0,0.00066575,90]
[354848470,1740736146131,-500.0,0.00067123,95]
[354848471,1740736146153,-500.0,0.0006767,100]
[354848472,1740736146174,-500.0,0.00068218,105]
[354848473,1740736146195,-232.8,0.00068766,120]
[354848474,1740736146214,-500.0,0.00072622,14]
[354848475,1740736146233,-500.0,0.00072622,3]
[354848476,1740736146253,-500.82690177,0.0007278,15]
[354848477,1740736146272,-500.0,0.0007278,15]
[354848478,1740736146292,-160.45547627,0.0007278,14]
[354848479,1740736146311,-307.98628014,0.0007278,15]
[354848480,1740736146330,-663.0589039,0.00074118,2]
[354848481,1740736146351,-1099.12,0.00074147,30]
[354848482,1740736146373,-376.83878206,0.00074156,10]
[354848483,1740736149197,-17569.87677065,0.00074156,10]
[354848484,1740736157104,-161.567074,0.00060776,35]
[354848485,1740736157128,-500.0,0.00072622,14]
[354848486,1740736157147,-500.0,0.00072622,3]
[354848487,1740736157170,-763.28,0.00074146,30]
[354848488,1740736157190,-20672.745566,0.00074156,10]
[354848489,1740736166104,-8645.66914754,0.00074,120]
[354848490,1740736166136,-2022.58153978,0.00074,120]
[354848491,1740736203105,500.0,0.0005469,2]
[354848492,1740736208954,302.0,0.00045,120]
[354848493,1740736210003,151.0,0.00057425,2]
[354848494,1740736210625,151.0,0.00057973,2]
[354848495,1740736211261,151.0,0.00058521,2]
[354848496,1740736211911,151.0,0.00059069,2]
[354848497,1740736212537,151.0,0.00059617,2]
[354848498,1740736213179,302.0,0.00060165,2]
[354848522,1740736238459,-701.250001,0.00073999,120]
[354848523,1740736238471,-498.749999,0.00073999,120]
[354848524,1740736238481,-22972.02535968,0.00074,120]
[354848525,1740736238491,-4258.98870838,0.00074056,120]
[354848526,1740736238501,-1008.54,0.00074146,30]
[354848527,1740736238510,-840.45,0.00074146,30]
[354848528,1740736238520,-30012.82,0.00074155,10]
[354848529,1740736238530,-17198.63,0.00074156,10]
[354848530,1740736238539,-700.38,0.00074156,30]
[354848531,1740736238550,-238.99460983,0.00074165,31]
[354848532,1740736238559,-247.11987523,0.00074165,120]
[354848533,1740736238568,-377.25646866,0.00074165,31]
[354848534,1740736238578,-500.0,0.00074165,120]
[354848536,1740736238587,-500.0,0.00074165,120]
[354848538,1740736238597,-500.0,0.00074165,120]
[354848539,1740736238606,-500.0,0.00074165,2]
[354848540,1740736238617,-500.0,0.00074165,120]
[354848541,1740736238628,-2103.08613953,0.00074165,120]
[354848542,1740736238637,-500.0,0.00074165,120]
[354848543,1740736238647,-500.0,0.00074165,2]
[354848544,1740736238656,-500.0,0.00074165,120]
[354848545,1740736238665,-591.36596784,0.00074165,120]
[354848546,1740736238674,-2103.08613953,0.00074165,120]
[354848547,1740736238687,-500.0,0.00074165,31]
[354848548,1740736238696,-500.0,0.00074165,120]